bitfinex-derivatives/quotes_BTCF0:USTF0_20210109
["timestamp","ask_amount","ask_price","bid_price","bid_amount"]
[1610183850655,0.89661606,40678.0,40677.0,0.10344172]
[1610183850857,0.01505516,40678.0,40677.0,0.10344172]
[1610183852059,0.44753631,40678.0,40677.0,0.10344172]
[1610183852758,0.98481631,40678.0,40677.0,0.10344172]
[1610183853357,0.65664239,40681.0,40677.0,0.10344172]
[1610183853760,1.34527913,40678.0,40677.0,0.10344172]
[1610183853959,1.34527913,40678.0,40677.0,0.10318]
[1610183854160,1.34527913,40678.0,40677.0,0.10344172]
[1610183854360,0.98525131,40678.0,40677.0,0.10344172]
[1610183854761,1.345287,40678.0,40677.0,0.10344172]
[1610183855160,1.345287,40678.0,40677.0,0.10344123]
[1610183855362,1.64206701,40678.0,40677.0,0.10318]
[1610183855763,3.28870196,40678.0,40668.0,0.08289]
[1610183855963,3.28900206,40678.0,40668.0,0.08289]
[1610183856164,0.98539703,40669.0,40668.0,0.08289]
[1610183856365,1.12172311,40669.0,40668.0,0.08289]
[1610183856566,2.28530676,40669.0,40668.0,0.08289]
[1610183856965,2.64544167,40669.0,40668.0,0.08289]
[1610183857266,2.64544167,40669.0,40668.0,0.08315127]
[1610183857466,1.98875802,40669.0,40668.0,0.08315127]
[1610183858667,1.09114739,40669.0,40668.0,0.08315127]
[1610183858867,1.09114739,40669.0,40668.0,0.08315075]
[1610183859470,1.98823765,40669.0,40668.0,0.08315075]
[1610183860369,3.48823765,40669.0,40668.0,0.00026075]
[1610183860768,4.89042307,40669.0,40644.0,0.11425]
[1610183860968,4.89072326,40669.0,40613.0,2.9135]
[1610183861170,0.00760664,40647.0,40613.0,2.9135]
[1610183861368,0.4099,40642.0,40613.0,2.9135]
[1610183861569,0.00760104,40645.0,40614.0,0.02695707]
[1610183861769,3.9256,40636.0,40614.0,0.09303037]
[1610183861970,3.9256,40636.0,40615.0,0.00026037]
[1610183862372,3.9256,40636.0,40618.0,0.13632608]
[1610183862870,3.9256,40636.0,40619.0,0.00026039]
[1610183864472,0.13632608,40620.0,40618.0,0.13632608]
[1610183866473,0.13632608,40620.0,40614.0,0.09277]
[1610183866873,3.6361,40615.0,40576.0,3.3697]
[1610183867275,0.0747,40619.0,40577.0,0.00025996]
[1610183867474,3.4746,40600.0,40577.0,0.11842996]
[1610183867672,3.4746,40600.0,40577.0,0.11817]
[1610183867874,3.4746,40600.0,40578.0,0.00025958]
[1610183868473,0.0737,40612.0,40584.0,0.13632608]
[1610183868673,0.00756701,40618.0,40584.0,0.13632608]
[1610183868873,0.00755536,40619.0,40584.0,0.13632608]
[1610183869274,0.00755536,40619.0,40585.0,0.00025956]
[1610183869473,0.2897,40623.0,40585.0,0.00025956]
[1610183870475,0.13632608,40613.0,40609.0,0.13632608]
[1610183871075,0.2897,40623.0,40609.0,0.13632608]
[1610183871276,0.2897,40623.0,40609.0,0.25032608]
[1610183872478,0.2897,40623.0,40619.0,0.13632608]
[1610183872681,0.2897,40623.0,40619.0,0.21817608]
[1610183875783,0.2897,40623.0,40619.0,0.08185]
[1610183877686,0.2897,40623.0,40619.0,0.09849]
[1610183878485,0.2897,40623.0,40622.0,0.13632608]
[1610183878685,0.2897,40623.0,40619.0,0.09849]
[1610183880588,0.13632608,40620.0,40619.0,0.09849]
[1610183881389,0.13632608,40620.0,40609.0,0.114]
[1610183881590,0.13632608,40620.0,40601.0,0.13632608]
[1610183881790,0.0738,40619.0,40601.0,0.13632608]
[1610183882491,0.13632608,40602.0,40601.0,0.13632608]
[1610183883492,0.13632608,40602.0,40575.0,4.1114]
[1610183883893,0.13632608,40602.0,40578.0,0.00025953]
[1610183884294,0.13632608,40602.0,40578.0,0.0838]
[1610183884494,0.0742,40615.0,40599.0,0.13632608]
[1610183884894,0.0742,40615.0,40599.0,0.25565608]
[1610183886096,0.0742,40615.0,40600.0,0.00025953]
[1610183886497,0.0742,40615.0,40605.0,0.13632608]
[1610183886697,0.2795,40618.0,40599.0,0.11933]
[1610183887196,0.2795,40618.0,40600.0,0.0728]
[1610183887396,0.2795,40618.0,40599.0,0.11933]
[1610183887998,0.2795,40618.0,40600.0,0.00025949]
[1610183888398,0.2795,40618.0,40599.0,0.11933]
[1610183888597,0.2795,40618.0,40611.0,0.13632608]
[1610183888798,4.0764,40621.0,40599.0,0.11933]
[1610183890001,4.0764,40621.0,40599.0,0.09748]
[1610183890600,0.13632608,40600.0,40599.0,0.09748]
[1610183891001,0.13632608,40600.0,40599.0,0.09773908]
[1610183891401,3.36822608,40600.0,40599.0,0.09773908]
[1610183891600,3.36822608,40600.0,40599.0,0.09748]
[1610183893004,3.36822608,40600.0,40599.0,0.0977391]
[1610183893504,3.36822608,40600.0,40599.0,0.09748]
[1610183895104,3.36822608,40600.0,40596.0,0.13632608]
[1610183897706,3.36822608,40600.0,40578.0,0.0838]
[1610183897908,3.36822608,40600.0,40565.0,4.0662]
[1610183898108,3.36822608,40600.0,40579.0,0.00025862]
[1610183898310,0.13632608,40600.0,40579.0,0.07742862]
[1610183898510,3.1172,40586.0,40582.0,0.13632608]
[1610183898711,3.1172,40586.0,40580.0,0.00025811]
[1610183900616,3.1172,40586.0,40585.0,0.13632608]
[1610183903016,0.13632608,40587.0,40585.0,0.13632608]
[1610183904417,0.2938,40599.0,40585.0,0.13632608]
[1610183904616,0.2938,40599.0,40595.0,0.13632608]
[1610183904815,0.2938,40599.0,40595.0,0.22325608]
[1610183905217,0.2938,40599.0,40595.0,0.08693]
[1610183906017,0.5139,40597.0,40595.0,0.08693]
[1610183906517,0.2938,40599.0,40595.0,0.08693]
[1610183906717,3.99672608,40596.0,40595.0,0.08693]
[1610183908217,0.13632608,40596.0,40595.0,0.08693]
[1610183909621,0.13632608,40596.0,40595.0,0.08718326]
[1610183913525,0.2938,40599.0,40595.0,0.08718326]
[1610183914126,0.2938,40599.0,40596.0,0.00025274]
[1610183914725,0.2938,40599.0,40598.0,0.13632608]
[1610183915126,0.2938,40599.0,40598.0,0.13657879]
[1610183915527,0.2938,40599.0,40598.0,0.00025271]
[1610183915926,0.2938,40599.0,40596.0,0.02384216]
[1610183916127,0.2938,40599.0,40598.0,0.00025271]
[1610183916326,0.2938,40599.0,40597.0,0.00025271]
[1610183916727,0.2938,40599.0,40596.0,0.02384216]
[1610183916929,0.2938,40599.0,40598.0,0.00025271]
[1610183917130,0.2938,40599.0,40597.0,0.00025271]
[1610183917429,0.2938,40599.0,40598.0,0.00025271]
[1610183917930,0.2938,40599.0,40596.0,0.02384216]
[1610183918330,0.2938,40599.0,40598.0,0.00025271]
[1610183918529,0.2938,40599.0,40597.0,0.00025271]
[1610183918733,0.2938,40599.0,40598.0,0.00025271]
[1610183919331,0.2938,40599.0,40596.0,0.02384216]
[1610183919532,0.2938,40599.0,40598.0,0.00025271]
[1610183919732,0.13632608,40601.0,40598.0,0.00025271]
[1610183919933,0.00312358,40613.0,40597.0,0.00025271]
[1610183920132,0.00312313,40614.0,40608.0,4.1035]
[1610183920333,0.00312313,40614.0,40609.0,0.02383478]
[1610183920533,0.00312609,40624.0,40609.0,0.02383478]
[1610183920732,0.00312609,40624.0,40623.0,0.13632608]
[1610183921135,0.00312536,40632.0,40623.0,0.26702032]
[1610183921334,0.00312536,40632.0,40629.0,2.8315]
[1610183921532,0.00312597,40636.0,40629.0,2.8315]
[1610183921731,0.65511456,40644.0,40629.0,2.8315]
[1610183921732,0.0031258,40641.0,40630.0,0.02382033]
[1610183922132,0.01071551,40645.0,40640.0,3.9423]
[1610183922331,0.01071551,40645.0,40640.0,4.02205]
[1610183922533,0.00312483,40648.0,40641.0,0.0238083]
[1610183922732,0.00312483,40648.0,40647.0,0.13632608]
[1610183922933,0.00312488,40652.0,40647.0,0.13632608]
[1610183923132,0.00312488,40652.0,40647.0,0.13657848]
[1610183923333,0.00312457,40653.0,40648.0,0.00025238]
[1610183923532,0.00312457,40653.0,40648.0,0.02380429]
[1610183923734,0.00312328,40655.0,40652.0,0.5504]
[1610183923935,0.00312328,40655.0,40652.0,0.66674]
[1610183924134,0.00312289,40658.0,40653.0,0.02379834]
[1610183924534,0.00312021,40664.0,40652.0,0.11634]
[1610183924734,0.00312021,40664.0,40663.0,0.13632608]
[1610183924934,0.00312012,40665.0,40663.0,0.13632608]
[1610183925133,0.00312012,40665.0,40663.0,0.23425608]
[1610183925334,0.44582843,40671.0,40663.0,0.23425608]
[1610183925534,0.19692843,40671.0,40663.0,0.23425608]
[1610183925734,0.53439394,40683.0,40663.0,0.23425608]
[1610183926135,0.6530262,40694.0,40682.0,4.107]
[1610183926333,0.6530262,40694.0,40682.0,4.2084]
[1610183926537,0.0726,40693.0,40682.0,4.2084]
[1610183926734,0.35997071,40697.0,40692.0,0.13632608]
[1610183926935,0.38621189,40698.0,40695.0,0.5004]
[1610183929338,0.45951189,40698.0,40695.0,0.5004]
[1610183929937,0.38621189,40698.0,40695.0,0.5004]
[1610183930938,0.074,40697.0,40695.0,0.5004]
[1610183931139,0.38621189,40698.0,40696.0,0.13632608]
[1610183932140,0.0741,40697.0,40696.0,0.13632608]
[1610183933141,0.38621189,40698.0,40696.0,0.13632608]
[1610183933342,0.38621189,40698.0,40695.0,0.5004]
[1610183936245,0.38621189,40698.0,40692.0,0.10212]
[1610183936446,0.38621189,40698.0,40682.0,0.1014]
[1610183936646,0.38621189,40698.0,40670.0,3.0375]
[1610183937247,0.13632608,40671.0,40670.0,3.0375]
[1610183937849,0.38621189,40698.0,40670.0,3.0375]
[1610183939250,0.13632608,40684.0,40683.0,0.13632608]
[1610183939849,0.13632608,40684.0,40670.0,3.0375]
[1610183940652,0.0737,40694.0,40670.0,3.0375]
[1610183941252,0.13632608,40686.0,40670.0,3.0375]
[1610183942856,0.0726,40685.0,40670.0,3.0375]
[1610183943056,0.0726,40685.0,40609.0,0.2779]
[1610183943256,0.0726,40685.0,40655.0,3.0696]
[1610183943657,0.13632608,40675.0,40664.0,0.13632608]
[1610183945159,0.13632608,40675.0,40651.0,2.9143]
[1610183945660,0.13632608,40663.0,40662.0,0.13632608]
[1610183946062,0.13632608,40663.0,40651.0,2.9143]
[1610183947663,0.13632608,40663.0,40662.0,0.13632608]
[1610183947863,0.13632608,40663.0,40662.0,0.25626608]
[1610183948264,0.20972608,40663.0,40662.0,0.68416608]
[1610183948664,0.13632608,40663.0,40662.0,0.68416608]
[1610183949065,0.0735,40680.0,40662.0,0.68416608]
[1610183949265,0.0735,40680.0,40662.0,0.25626608]
[1610183949666,0.13632608,40676.0,40675.0,0.13632608]
[1610183949867,0.20902608,40676.0,40675.0,0.13632608]
[1610183950066,0.13632608,40676.0,40675.0,0.13632608]
[1610183950267,0.13662612,40676.0,40675.0,0.13632608]
[1610183951065,0.20932612,40676.0,40675.0,0.13632608]
[1610183951566,0.13662612,40676.0,40675.0,0.13632608]
[1610183952469,0.21042612,40676.0,40675.0,0.13632608]
[1610183952668,0.13662612,40676.0,40675.0,0.13632608]
[1610183953667,0.20952612,40676.0,40675.0,0.13632608]
[1610183953867,0.20952612,40676.0,40662.0,4.16144]
[1610183954169,0.20952612,40676.0,40662.0,0.11994]
[1610183954368,0.20952612,40676.0,40645.0,3.3081]
[1610183954571,0.00030007,40675.0,40645.0,3.3081]
[1610183954771,0.02470509,40675.0,40610.0,0.1556]
[1610183954973,3.0063,40673.0,40610.0,0.1556]
[1610183955171,0.09710776,40672.0,40609.0,4.063]
[1610183955372,0.09740789,40672.0,40611.0,0.00025259]
[1610183955571,0.02470928,40671.0,40611.0,0.10270259]
[1610183955772,0.02470928,40671.0,40637.0,0.13632608]
[1610183955973,0.02470928,40671.0,40637.0,0.23016608]
[1610183956371,0.02470928,40671.0,40637.0,0.09384]
[1610183957775,0.13632608,40645.0,40638.0,0.13632608]
[1610183958174,0.00030019,40644.0,40638.0,0.13632608]
[1610183959278,0.00030019,40644.0,40637.0,0.09384]
[1610183959679,0.13632608,40638.0,40637.0,0.09384]
[1610183961081,0.13632608,40638.0,40635.0,0.13632608]
[1610183962581,0.11573,40661.0,40635.0,0.13632608]
[1610183962982,3.9899,40662.0,40635.0,0.25347608]
[1610183963183,0.00030018,40660.0,40635.0,0.25347608]
[1610183963382,0.00030018,40661.0,40635.0,0.25347608]
[1610183963783,0.00030018,40659.0,40651.0,0.13632608]
[1610183963984,0.00030016,40660.0,40651.0,0.13632608]
[1610183964184,0.00030016,40658.0,40651.0,0.13632608]
[1610183964385,0.00030016,40659.0,40647.0,0.09743]
[1610183964584,3.84490016,40659.0,40647.0,0.09743]
[1610183964787,3.8446,40659.0,40647.0,0.09743]
[1610183964986,0.00030016,40658.0,40647.0,0.09743]
[1610183965185,2.9277,40648.0,40635.0,0.11715]
[1610183965784,0.13632608,40636.0,40624.0,0.13632608]
[1610183965984,0.13632608,40636.0,40612.0,3.8219]
[1610183966485,0.00030027,40635.0,40612.0,3.8219]
[1610183967284,0.13632608,40636.0,40612.0,3.8219]
[1610183967484,0.13632608,40636.0,40568.0,0.1556]
[1610183967685,3.0794,40632.0,40591.0,3.8593]
[1610183968688,0.00030036,40631.0,40592.0,0.00025591]
[1610183968888,0.00030036,40631.0,40591.0,3.8593]
[1610183970891,3.0794,40632.0,40592.0,0.00025596]
[1610183971093,3.0794,40632.0,40592.0,0.10220596]
[1610183971493,3.0794,40632.0,40593.0,0.00025596]
[1610183971792,0.13632608,40605.0,40604.0,0.13632608]
[1610183972192,0.13632608,40605.0,40593.0,0.00025596]
[1610183972393,0.13632608,40605.0,40592.0,0.10195]
[1610183972592,0.13632608,40605.0,40594.0,0.00025596]
[1610183972793,0.0728,40621.0,40594.0,0.00025596]
[1610183972993,0.2758,40620.0,40593.0,0.00025596]
[1610183973192,0.3505,40620.0,40593.0,0.00025596]
[1610183973392,0.3505,40620.0,40592.0,0.10195]
[1610183973792,0.0747,40620.0,40615.0,0.13632608]
[1610183975596,1.0,40656.0,40615.0,0.13632608]
[1610183975597,3.9646,40649.0,40615.0,0.13632608]
[1610183975795,0.13632608,40640.0,40639.0,0.13632608]
[1610183976794,0.2762,40655.0,40639.0,0.13632608]
[1610183976995,0.2762,40655.0,40639.0,0.23135608]
[1610183977798,0.2762,40655.0,40654.0,0.13632608]
[1610183977997,0.2762,40655.0,40654.0,0.22549608]
[1610183979799,0.41252608,40655.0,40654.0,0.22549608]
[1610183980299,0.41252608,40655.0,40654.0,0.08917]
[1610183982001,0.41252608,40655.0,40639.0,0.09503]
[1610183982202,0.4399,40654.0,40627.0,4.0577]
[1610183982402,0.41252608,40655.0,40584.0,0.1556]
[1610183982703,3.6027,40651.0,40628.0,0.00025581]
[1610183982903,0.0747,40650.0,40614.0,0.02514404]
[1610183983104,0.0747,40650.0,40629.0,0.00025581]
[1610183983503,0.0747,40650.0,40629.0,0.0801]
[1610183983705,0.0747,40650.0,40630.0,0.00025581]
[1610183983904,0.13632608,40631.0,40629.0,0.0801]
[1610183987110,0.13632608,40631.0,40630.0,0.00025584]
[1610183987910,0.13632608,40631.0,40629.0,0.0801]
[1610183988414,0.13632608,40631.0,40618.0,0.13632608]
[1610183989012,0.13632608,40631.0,40619.0,0.00025587]
[1610183989913,0.13632608,40620.0,40619.0,0.00025587]
[1610183990513,0.44312219,40645.0,40619.0,0.00025587]
[1610183990713,0.44320206,40646.0,40619.0,0.00025587]
[1610183990914,0.27625191,40631.0,40619.0,0.00025587]
[1610183991815,0.27625191,40631.0,40630.0,0.13632608]
[1610183992215,0.27625191,40631.0,40630.0,0.23937608]
[1610183992416,0.27625191,40631.0,40630.0,0.10330584]
[1610183993817,0.41257799,40631.0,40630.0,0.10330584]
[1610183998628,3.26537799,40631.0,40630.0,0.10330584]
[1610183999030,3.33947799,40631.0,40630.0,0.00025584]
[1610183999227,3.33947799,40631.0,40613.0,0.0785]
[1610183999427,0.0733,40630.0,40594.0,0.04897656]
[1610183999727,0.0733,40630.0,40614.0,0.00025594]
[1610183999928,0.13632608,40615.0,40607.0,0.13632608]
[1610184000127,0.5207,40614.0,40607.0,0.13632608]
[1610184000528,0.5207,40614.0,40608.0,0.02515984]
[1610184000730,0.5207,40614.0,40608.0,0.07337595]
[1610184001132,0.5207,40614.0,40609.0,0.00025595]
[1610184001329,0.13632608,40615.0,40609.0,0.00025595]
[1610184001530,3.8488,40610.0,40609.0,0.00025595]
[1610184002031,3.98512608,40610.0,40609.0,0.00025595]
[1610184002431,3.98512608,40610.0,40608.0,0.02537595]
[1610184003535,0.13632608,40610.0,40608.0,0.02537595]
[1610184005338,0.13632608,40610.0,40609.0,0.00025596]
[1610184005938,3.4507,40618.0,40609.0,0.13658204]
[1610184006339,3.4507,40618.0,40610.0,0.00025594]
[1610184008039,0.13632608,40611.0,40610.0,0.00025594]
[1610184008437,0.13632608,40611.0,40609.0,0.00025594]
[1610184008639,0.13632608,40611.0,40610.0,0.00025594]
[1610184009239,0.71972608,40611.0,40609.0,0.00025594]
[1610184009438,0.71972608,40611.0,40610.0,0.00025594]
[1610184010041,0.71972608,40611.0,40609.0,0.00025594]
[1610184015850,0.71972608,40611.0,40609.0,0.02516984]
[1610184016052,0.71972608,40611.0,40610.0,0.13632608]
[1610184016453,0.5834,40611.0,40610.0,0.13658205]
[1610184018359,0.5834,40611.0,40610.0,0.16149529]
[1610184018758,0.5834,40611.0,40610.0,0.13658205]
[1610184019158,0.5834,40611.0,40610.0,0.00025597]
[1610184019360,0.5834,40611.0,40610.0,0.02516914]
[1610184019557,0.5834,40611.0,40609.0,0.00025597]
[1610184019763,0.5834,40611.0,40610.0,0.02516938]
[1610184019958,0.5834,40611.0,40610.0,0.00025597]
[1610184020257,0.5834,40611.0,40610.0,0.02516897]
[1610184022060,0.13632608,40618.0,40610.0,0.02516897]
[1610184022265,0.44683904,40626.0,40610.0,0.02516897]
[1610184022461,0.44684224,40627.0,40610.0,0.02516897]
[1610184022863,0.2725,40630.0,40610.0,0.02516897]
[1610184023264,0.27625191,40631.0,40610.0,0.02516897]
[1610184023961,0.27625191,40631.0,40630.0,0.13632608]
[1610184024163,0.27625191,40631.0,40630.0,0.21207608]
[1610184024568,0.27625191,40631.0,40630.0,0.21232899]
[1610184025662,0.27625191,40631.0,40630.0,0.23604577]
[1610184028265,0.27625191,40631.0,40630.0,0.21232899]
[1610184043776,0.27625191,40631.0,40630.0,0.07600291]
[1610184046179,0.27625191,40631.0,40630.0,0.21232899]
[1610184047682,0.27625191,40631.0,40630.0,3.74072899]
[1610184048281,0.27625191,40631.0,40630.0,3.76444425]
[1610184049283,0.27625191,40631.0,40630.0,3.81179163]
[1610184052388,0.27625191,40631.0,40630.0,0.28339163]
[1610184052889,0.27625191,40631.0,40630.0,0.23604425]
[1610184058798,0.27625191,40631.0,40630.0,0.63354425]
[1610184059198,0.27625191,40631.0,40630.0,0.68088897]
[1610184063905,0.27625191,40631.0,40630.0,0.75398897]
[1610184064107,0.27625191,40631.0,40630.0,0.68088897]
[1610184065807,0.27625191,40631.0,40630.0,0.28338897]
[1610184066408,0.27625191,40631.0,40630.0,0.23604425]
[1610184069213,0.27625191,40631.0,40630.0,0.30904425]
[1610184069412,0.27625191,40631.0,40630.0,0.23604425]
[1610184078723,0.27625191,40631.0,40630.0,0.21232899]
[1610184086029,0.27625191,40631.0,40630.0,0.07600291]
[1610184086427,3.40065291,40631.0,40630.0,0.07600291]
[1610184087230,3.84935368,40631.0,40630.0,0.07600291]
[1610184088028,3.83425268,40631.0,40630.0,0.07600291]
[1610184089432,3.84934962,40631.0,40630.0,0.07600291]
[1610184089833,3.83425268,40631.0,40630.0,0.07600291]
[1610184090233,3.38555191,40631.0,40630.0,0.07600291]
[1610184091537,3.83399577,40631.0,40630.0,0.07600291]
[1610184091935,3.40064446,40631.0,40630.0,0.07600291]
[1610184092336,3.84904903,40631.0,40630.0,0.07600291]
[1610184092739,3.40064446,40631.0,40630.0,0.07600291]
[1610184094641,3.38555191,40631.0,40630.0,0.07600291]
[1610184095041,3.38555191,40631.0,40630.0,0.09971622]
[1610184095442,0.27625191,40631.0,40630.0,0.09971622]
[1610184099448,0.27625191,40631.0,40630.0,0.07600291]
[1610184099846,0.27625191,40631.0,40630.0,0.09971633]
[1610184106060,0.73947679,40631.0,40630.0,0.09971633]
[1610184106562,0.72439436,40631.0,40630.0,0.09971633]
[1610184107361,0.29133298,40631.0,40630.0,0.09971633]
[1610184108562,0.73939058,40631.0,40630.0,0.09971633]
[1610184108965,0.72430951,40631.0,40630.0,0.09971633]
[1610184110366,0.73938897,40631.0,40630.0,0.09971633]
[1610184110767,0.29133137,40631.0,40630.0,0.09971633]
[1610184111666,0.72434744,40631.0,40630.0,0.09971633]
[1610184112868,0.73942911,40631.0,40630.0,0.09971633]
[1610184113569,0.72434744,40631.0,40630.0,0.09971633]
[1610184117274,5.16608307,40631.0,40630.0,0.09971633]
[1610184118176,4.80571543,40631.0,40630.0,0.09971633]
[1610184118675,5.16609303,40631.0,40630.0,0.09971633]
[1610184120474,1.62269303,40631.0,40630.0,0.09971633]
[1610184121274,5.42809303,40631.0,40630.0,0.09971633]
[1610184121475,5.50269303,40631.0,40621.0,0.11545]
[1610184121676,0.0734,40630.0,40612.0,0.04735998]
[1610184121875,0.0734,40630.0,40570.0,2.52399452]
[1610184121876,0.0734,40630.0,40602.0,0.04735118]
[1610184122077,0.00030038,40629.0,40613.0,0.00025295]
[1610184122276,0.00762455,40615.0,40613.0,0.00025295]
[1610184122476,0.00762455,40615.0,40575.0,2.9632]
[1610184122477,0.13632608,40614.0,40608.0,0.02396932]
[1610184122676,3.5251,40609.0,40593.0,0.02372062]
[1610184122877,3.5251,40609.0,40608.0,0.02397502]
[1610184123276,3.5251,40609.0,40594.0,0.02397582]
[1610184123480,3.97363691,40609.0,40608.0,0.00025301]
[1610184123676,3.97363691,40609.0,40595.0,0.0239773]
[1610184123878,0.00762326,40606.0,40595.0,0.0239773]
[1610184124080,0.00762326,40606.0,40593.0,0.02372448]
[1610184124279,0.00762326,40606.0,40596.0,0.02397878]
[1610184124480,0.13632608,40597.0,40593.0,0.02397966]
[1610184124881,0.5161,40596.0,40579.0,0.13632608]
[1610184125081,0.13632608,40597.0,40594.0,0.02397964]
[1610184125278,0.13632608,40597.0,40594.0,0.08914]
[1610184125678,0.13632608,40597.0,40595.0,0.02398014]
[1610184126281,3.6121,40596.0,40595.0,0.02398014]
[1610184127181,3.6121,40596.0,40595.0,0.02397976]
[1610184127382,0.13632608,40597.0,40595.0,0.02397976]
[1610184128985,0.13632608,40597.0,40595.0,0.00025305]
[1610184129185,0.13632608,40597.0,40596.0,0.00025305]
[1610184129785,0.13632608,40597.0,40595.0,0.00025305]
[1610184129987,0.13632608,40597.0,40594.0,0.08914]
[1610184129988,0.13632608,40597.0,40596.0,0.00025305]
[1610184130585,0.13632608,40597.0,40595.0,0.00025303]
[1610184131588,0.13632608,40597.0,40594.0,0.08914]
[1610184131789,0.13632608,40597.0,40577.0,3.0247]
[1610184132089,0.13632608,40597.0,40578.0,0.02400351]
[1610184132288,0.13632608,40597.0,40578.0,0.13804351]
[1610184132489,0.13632608,40597.0,40578.0,0.11429311]
[1610184132689,0.13632608,40586.0,40585.0,0.13632608]
[1610184133291,0.13632608,40586.0,40585.0,0.13657919]
[1610184136495,0.13632608,40586.0,40585.0,0.00025311]
[1610184136894,0.13632608,40586.0,40579.0,0.13657919]
[1610184137094,0.13632608,40586.0,40585.0,0.00025311]
[1610184137492,0.13632608,40586.0,40580.0,0.00025313]
[1610184137694,0.13632608,40586.0,40579.0,0.13632608]
[1610184137894,0.13632608,40586.0,40580.0,0.00025313]
[1610184138695,0.13632608,40581.0,40580.0,0.00025313]
[1610184141397,0.13632608,40581.0,40579.0,0.13632608]
[1610184142199,0.0745,40580.0,40579.0,0.13632608]
[1610184142398,0.13632608,40581.0,40579.0,0.13632608]
[1610184144099,0.0733,40580.0,40579.0,0.13632608]
[1610184144600,0.0733,40580.0,40579.0,0.13657927]
[1610184144800,0.13632608,40581.0,40579.0,0.13657927]
[1610184145202,0.13632608,40581.0,40580.0,0.00025319]
[1610184150111,0.13632608,40581.0,40580.0,0.02401662]
[1610184150511,0.13632608,40581.0,40579.0,0.02401633]
[1610184150711,0.13632608,40581.0,40580.0,0.00025319]
[1610184150912,0.13632608,40581.0,40580.0,0.02401681]
[1610184151112,0.13632608,40581.0,40579.0,0.02401687]
[1610184151314,0.13632608,40581.0,40580.0,0.02401723]
[1610184151912,0.13632608,40581.0,40579.0,0.02402008]
[1610184152113,0.13632608,40581.0,40580.0,0.02402053]
[1610184152712,0.13632608,40581.0,40579.0,0.00025322]
[1610184152914,0.13632608,40581.0,40580.0,0.00025322]
[1610184153113,3.46512608,40581.0,40580.0,0.00025322]
[1610184153513,3.46512608,40581.0,40579.0,0.00025322]
[1610184153713,3.46512608,40581.0,40580.0,0.00025322]
[1610184154314,3.46512608,40581.0,40579.0,0.00025324]
[1610184154515,3.46512608,40581.0,40580.0,0.00025324]
[1610184155117,3.46512608,40581.0,40579.0,0.00025326]
[1610184155316,3.46512608,40581.0,40580.0,0.00025326]
[1610184155915,3.46512608,40581.0,40569.0,0.0240243]
[1610184156516,3.46512608,40581.0,40569.0,0.00025326]
[1610184156715,0.13632608,40570.0,40569.0,0.00025326]
[1610184161321,0.13632608,40570.0,40569.0,0.0240241]
[1610184161821,0.13632608,40570.0,40569.0,0.00025326]
[1610184162824,0.13632608,40570.0,40569.0,0.02402385]
[1610184163224,0.13632608,40570.0,40569.0,0.00025326]
[1610184164526,3.3288,40581.0,40569.0,0.02402425]
[1610184164728,3.3288,40581.0,40576.0,0.13632608]
[1610184165330,3.3288,40581.0,40577.0,0.00025326]
[1610184165728,3.3288,40581.0,40569.0,0.02402421]
[1610184166128,3.3288,40581.0,40578.0,0.00025326]
[1610184166330,3.3288,40581.0,40570.0,0.00025326]
[1610184166528,3.3288,40581.0,40579.0,0.00025326]
[1610184166728,0.13632608,40580.0,40579.0,0.00025326]
[1610184166931,0.13632608,40580.0,40572.0,0.13632608]
[1610184167130,0.13632608,40580.0,40579.0,0.00025326]
[1610184167329,0.13632608,40580.0,40573.0,0.00025326]
[1610184167730,0.13632608,40580.0,40579.0,0.00025326]
[1610184167934,0.13632608,40580.0,40572.0,0.13632608]
[1610184168132,0.13632608,40580.0,40579.0,0.00025326]
[1610184168332,0.13632608,40580.0,40573.0,0.00025326]
[1610184168737,3.3288,40581.0,40579.0,0.00025326]
[1610184168935,3.3288,40581.0,40574.0,0.00025326]
[1610184169135,3.3288,40581.0,40580.0,0.00025326]
[1610184169336,0.00311479,40589.0,40580.0,0.00025326]
[1610184169536,0.00311606,40588.0,40575.0,0.00025326]
[1610184169735,0.00311606,40588.0,40581.0,0.00025326]
[1610184169936,0.08332599,40590.0,40575.0,0.00025326]
[1610184170336,0.00311599,40590.0,40582.0,0.00025326]
[1610184170540,0.00311599,40590.0,40575.0,0.02402412]
[1610184170736,0.00311599,40590.0,40583.0,0.00025326]
[1610184170936,0.28558411,40591.0,40577.0,0.13632608]
[1610184171236,0.27801671,40591.0,40578.0,0.02402317]
[1610184171735,0.32939841,40581.0,40578.0,0.02402317]
[1610184172938,3.1407,40580.0,40578.0,0.02402317]
[1610184175140,0.32939841,40581.0,40578.0,0.02402317]
[1610184175340,0.32939841,40581.0,40580.0,3.1762]
[1610184175742,0.32939841,40581.0,40580.0,3.20021645]
[1610184177041,0.32939841,40581.0,40580.0,0.09851645]
[1610184177440,0.40289841,40581.0,40580.0,0.09851645]
[1610184177841,0.32939841,40581.0,40580.0,0.09851645]
[1610184178843,0.40349841,40581.0,40580.0,0.09851645]
[1610184179646,0.32939841,40581.0,40580.0,0.09851645]
[1610184180749,0.40229841,40581.0,40580.0,0.02401645]
[1610184181149,0.40229841,40581.0,40580.0,2.94341645]
[1610184181349,0.32939841,40581.0,40580.0,2.9194]
[1610184181550,0.32939841,40581.0,40580.0,2.94340161]
[1610184181949,0.32939841,40581.0,40580.0,2.99080731]
[1610184182749,0.32939841,40581.0,40580.0,2.94340161]
[1610184182950,0.32939841,40581.0,40580.0,2.9908045]
[1610184183550,0.03175841,40581.0,40580.0,2.9908045]
[1610184184150,5.841e-05,40581.0,40580.0,2.9908045]
[1610184184351,5.841e-05,40581.0,40580.0,4.4908045]
[1610184184552,0.00313251,40617.0,40580.0,4.5643045]
[1610184184750,0.00313251,40617.0,40616.0,0.13632608]
[1610184184950,0.00313251,40617.0,40616.0,0.25619608]
[1610184185151,0.01073979,40620.0,40616.0,0.78099608]
[1610184185351,0.01073979,40620.0,40616.0,0.78124909]
[1610184185552,0.00313077,40622.0,40617.0,0.00025301]
[1610184185956,0.00313057,40624.0,40617.0,0.00025301]
[1610184186354,0.00312779,40630.0,40617.0,0.00025301]
[1610184186753,0.00312774,40631.0,40629.0,0.13632608]
[1610184186955,0.00312774,40631.0,40630.0,0.5466]
[1610184187155,0.00312768,40633.0,40630.0,0.54685296]
[1610184187555,0.00312515,40634.0,40630.0,0.00025296]
[1610184187756,0.00312515,40634.0,40633.0,3.5789]
[1610184187957,0.00312503,40638.0,40633.0,3.5789]
[1610184188355,0.00312491,40640.0,40633.0,3.5789]
[1610184188755,0.0031217,40644.0,40639.0,0.13632608]
[1610184188954,0.0031217,40644.0,40639.0,0.23860608]
[1610184189155,0.00312158,40649.0,40639.0,0.23860608]
[1610184189355,0.00312158,40649.0,40648.0,3.601]